fUST/lending_fUST_20250731
["ID","MTS","AMOUNT","RATE_DAILY","PERIOD"]
[376290715,1753918249163,-325.0,0.00024897,2]
[376290717,1753918249173,-347.20436139,0.00024899,2]
[376290719,1753918249184,-151.0,0.00024899,7]
[376290721,1753918249195,-151.0,0.00024899,7]
[376290723,1753918249206,-151.0,0.00024899,7]
[376290725,1753918249218,-151.0,0.00024899,7]
[376290728,1753918249230,-151.0,0.00024899,7]
[376290730,1753918249240,-151.0,0.00024899,7]
[376290732,1753918249251,-151.0,0.00024899,7]
[376290734,1753918249261,-151.0,0.00024899,7]
[376290736,1753918249272,-151.0,0.00024899,7]
[376290738,1753918249282,-204.798761,0.00024899,7]
[376290740,1753918249293,-243.820824,0.00024899,7]
[376290743,1753918249305,-243.820824,0.00024899,7]
[376290745,1753918249316,-151.0,0.000249,7]
[376290747,1753918249327,-343.196989,0.000249,7]
[376290749,1753918249338,-151.0,0.000249,7]
[376290751,1753918249349,-151.0,0.000249,7]
[376290753,1753918249360,-151.0,0.000249,7]
[376290755,1753918249371,-151.0,0.000249,7]
[376290757,1753918249381,-151.0,0.000249,7]
[376290759,1753918249392,-151.0,0.000249,7]
[376290763,1753918249414,-151.0,0.000249,7]
[376290765,1753918249429,-151.0,0.000249,7]
[376290768,1753918249442,-151.861911,0.000249,7]
[376290770,1753918249455,-151.0,0.000249,7]
[376290773,1753918249468,-151.0,0.000249,7]
[376290775,1753918249481,-151.0,0.000249,7]
[376290777,1753918249494,-151.0,0.000249,7]
[376290780,1753918249506,-151.0,0.000249,7]
[376290782,1753918249518,-459.121714,0.000249,7]
[376290784,1753918249531,-459.121714,0.000249,7]
[376290786,1753918249542,-459.121714,0.000249,7]
[376290789,1753918249554,-459.121714,0.000249,7]
[376290791,1753918249567,-151.0,0.000249,7]
[376290793,1753918249579,-151.0,0.000249,7]
[376290795,1753918249591,-151.501694,0.000249,7]
[376290798,1753918249603,-151.0,0.000249,7]
[376290800,1753918249614,-270.494442,0.000249,7]
[376290802,1753918249625,-256.379508,0.000249,7]
[376290804,1753918249635,-256.379508,0.000249,7]
[376290807,1753918249647,-151.0,0.000249,7]
[376290809,1753918249659,-151.0,0.000249,7]
[376290811,1753918249670,-256.379508,0.000249,7]
[376290813,1753918249680,-256.379508,0.000249,7]
[376290815,1753918249689,-410.612324,0.000249,7]
[376290817,1753918249698,-410.612324,0.000249,7]
[376290819,1753918249707,-410.612324,0.000249,7]
[376290821,1753918249716,-410.612314,0.000249,7]
[376290823,1753918249725,-151.42491617,0.000249,7]
[376291257,1753918259012,150.0,0.00021685,30]
[376291264,1753918436817,5000.0,0.0001901,6]
[376291265,1753918574073,312.75499816,0.00018758,2]
[376291268,1753918840687,161.640901,0.00013699,2]
[376291271,1753918980539,5111.11144733,0.00018908,2]
[376291272,1753918980562,4888.88855267,0.00018908,2]
[376291273,1753918984646,5000.0,0.00019001,2]
[376291274,1753919001921,5000.0,0.00019001,2]
[376291275,1753919018191,5000.0,0.00019001,2]
[376291276,1753919034106,5000.0,0.00019001,2]
[376291277,1753919049895,5000.0,0.00019001,2]
[376291278,1753919067303,5000.0,0.00019001,2]
[376291279,1753919083394,5000.0,0.00019001,2]
[376291280,1753919099204,111.11144733,0.00019001,2]
[376291281,1753919099228,4888.88855267,0.00019001,2]
[376291282,1753919115096,5000.0,0.00019001,2]
[376291283,1753919131112,5000.0,0.00019001,2]
[376291284,1753919131313,24900.0,0.00018837,2]
[376291285,1753919163235,211.11144733,0.00019001,2]
[376291286,1753919163259,4788.88855267,0.00019001,2]
[376291287,1753919172924,150.0,0.00021557,30]
[376291288,1753919179851,5000.0,0.00019001,2]
[376291289,1753919195261,5000.0,0.00019001,2]
[376291290,1753919211421,5000.0,0.00019001,2]
[376291291,1753919228882,5000.0,0.00019001,2]
[376291292,1753919245219,5000.0,0.00019001,2]
[376291294,1753919261078,5000.0,0.00019001,2]
[376291295,1753919276359,5000.0,0.00019001,2]
[376291297,1753919292197,211.11144733,0.00019001,2]
[376291298,1753919292223,4788.88855267,0.00019001,2]
[376291303,1753919308606,5000.0,0.00019001,2]
[376291304,1753919324626,5000.0,0.00019001,2]
[376291307,1753919340128,5000.0,0.00019001,2]
[376291308,1753919345907,155.76500385,0.00019001,2]
[376291311,1753919355340,5000.0,0.00019001,2]
[376291312,1753919371474,5000.0,0.00019001,2]
[376291315,1753919386859,5000.0,0.00019001,2]
[376291316,1753919402260,5000.0,0.00019001,2]
[376291317,1753919418141,55.34644348,0.00019001,2]
[376291318,1753919418168,4477.28598163,0.00019001,2]
[376291341,1753919432616,-260.76879575,0.00019234,2]
[376291467,1753919440679,-121.40185125,0.00019234,2]
[376291469,1753919440689,-1912.3081558,0.00019234,2]
[376291471,1753919440699,-5821.44048786,0.00019234,2]
[376291474,1753919440712,-330.154,0.00019234,2]
[376291483,1753919440791,-622.40080329,0.00019234,2]
[376291485,1753919440802,-55966.28328615,0.00019234,2]
[376291487,1753919440812,-166.0,0.00019249,2]
[376291489,1753919440823,-1200.0,0.00019337,2]
[376291491,1753919440832,-3874.9830207,0.00019338,2]
[376291493,1753919440841,-156.37749908,0.00019558,2]
[376291495,1753919440850,-307.64617957,0.00019691,2]
[376291497,1753919440859,-300.0,0.00020055,2]
[376291499,1753919440869,-257.0,0.00020055,2]
[376291501,1753919440879,-179.5664307,0.00020064,2]
[376291503,1753919440889,-460.0,0.00020163,2]
[376291505,1753919440898,-460.0,0.00020163,2]
[376291507,1753919440908,-460.0,0.00020163,2]
[376291509,1753919440918,-460.0,0.00020163,2]
[376291511,1753919440928,-460.0,0.00020163,2]
[376291513,1753919440937,-460.0,0.00020163,2]
[376291515,1753919440946,-460.0,0.00020163,2]
[376291517,1753919440956,-1000.0,0.00020163,2]
[376291519,1753919440969,-3402.19254401,0.00020163,2]
[376291521,1753919440981,-936.60470838,0.00020163,2]
[376291524,1753919440993,-3625.31663789,0.00020163,2]
[376291641,1753919442123,-104.73387876,0.00020163,2]
[376291644,1753919442132,-460.0,0.00020164,2]
[376291646,1753919442142,-460.0,0.00020164,2]
[376291648,1753919442152,-460.0,0.00020164,2]
[376291650,1753919442161,-460.0,0.00020164,2]
[376291652,1753919442171,-460.0,0.00020164,2]
[376291654,1753919442180,-460.0,0.00020164,2]
[376291656,1753919442189,-460.0,0.00020164,2]
[376291658,1753919442199,-448.36887167,0.00020164,2]
[376291660,1753919442208,-460.0,0.00020164,2]
[376291662,1753919442216,-160.68645504,0.00020164,2]
[376291664,1753919442225,-360.05115453,0.00020164,2]
[376291666,1753919442237,-99.94884547,0.00020164,2]
[376291668,1753919442246,-460.0,0.00020164,2]
[376291670,1753919442255,-460.0,0.00020164,2]
[376291672,1753919442265,-460.0,0.00020164,2]
[376291674,1753919442274,-460.0,0.00020164,2]
[376291676,1753919442284,-500.0,0.00020164,2]
[376291678,1753919442294,-460.0,0.00020164,2]
[376291680,1753919442303,-318.61372752,0.00020164,2]
[376291682,1753919442312,-460.0,0.00020164,2]
[376291684,1753919442322,-460.0,0.00020164,2]
[376291686,1753919442331,-460.0,0.00020164,2]
[376291688,1753919442340,-460.0,0.00020164,2]
[376291690,1753919442349,-460.0,0.00020164,2]
[376291692,1753919442358,-400.00000075,0.00020164,2]
[376291694,1753919442367,-460.0,0.00020164,2]
[376291696,1753919442377,-460.0,0.00020164,2]
[376291698,1753919442386,-460.0,0.00020164,2]
[376291700,1753919442397,-417.31594807,0.00020164,2]
[376291702,1753919442407,-460.0,0.00020164,2]
[376291704,1753919442416,-460.0,0.00020164,2]
[376291706,1753919442426,-460.0,0.00020164,2]
[376291708,1753919442436,-460.0,0.00020164,2]
[376291710,1753919442445,-460.0,0.00020164,2]
[376291712,1753919442454,-460.0,0.00020164,2]
[376291714,1753919442465,-204.7095062,0.00020164,2]
[376291717,1753919442474,-460.0,0.00020164,2]
[376291719,1753919442483,-460.0,0.00020164,2]
[376291720,1753919442493,-208.14074558,0.00020164,2]
[376291824,1753919443575,-251.85925442,0.00020164,2]
[376291826,1753919443585,-460.0,0.00020164,2]
[376291828,1753919443595,-282.02709983,0.00020164,2]
[376291830,1753919443605,-460.0,0.00020164,2]
[376291832,1753919443615,-460.0,0.00020164,2]
[376291834,1753919443625,-460.0,0.00020164,2]
[376291836,1753919443634,-460.0,0.00020164,2]
[376291838,1753919443643,-460.0,0.00020164,2]
[376291841,1753919443652,-460.0,0.00020164,2]
[376291843,1753919443661,-460.0,0.00020164,2]
[376291845,1753919443671,-460.0,0.00020164,2]
[376291847,1753919443680,-460.0,0.00020164,2]
[376291849,1753919443690,-460.0,0.00020164,2]
[376291851,1753919443699,-460.0,0.00020164,2]
[376291853,1753919443708,-460.0,0.00020164,2]
[376291855,1753919443718,-302.30417723,0.00020164,2]
[376291857,1753919443727,-460.0,0.00020164,2]
[376291859,1753919443736,-460.0,0.00020164,2]
[376291861,1753919443745,-460.0,0.00020164,2]
[376291864,1753919443755,-460.0,0.00020164,2]
[376291867,1753919443764,-460.0,0.00020164,2]
[376291870,1753919443773,-460.0,0.00020164,2]
[376291873,1753919443783,-460.0,0.00020164,2]
[376291876,1753919443792,-460.0,0.00020164,2]
[376291879,1753919443801,-460.0,0.00020164,2]
[376291881,1753919443811,-529.98861256,0.00020164,2]
[376291883,1753919443820,-460.0,0.00020164,2]
[376291885,1753919443829,-460.0,0.00020164,2]
[376291887,1753919443838,-460.0,0.00020164,2]
[376291889,1753919443847,-460.0,0.00020164,2]
[376291891,1753919443857,-460.0,0.00020164,2]
[376291893,1753919443866,-252.5366001,0.00020164,2]
[376291895,1753919443875,-288.17094997,0.00020164,2]
[376291897,1753919443885,-460.0,0.00020164,2]
[376291899,1753919443895,-460.0,0.00020164,2]
[376291901,1753919443905,-460.0,0.00020164,2]
[376291903,1753919443915,-477.29016809,0.00020165,2]
[376291905,1753919443925,-460.0,0.00020165,2]
[376291907,1753919443934,-460.0,0.00020165,2]
[376291909,1753919443943,-555.72,0.00020166,2]
[376291911,1753919443953,-460.0,0.00020166,2]
[376291913,1753919443962,-460.0,0.00020166,2]
[376291915,1753919443974,-460.0,0.00020166,2]
[376291917,1753919443984,-460.0,0.00020166,2]
[376291919,1753919443993,-460.0,0.00020166,2]
[376291921,1753919444002,-280.71521798,0.00020166,2]
[376291923,1753919444013,-460.0,0.00020166,2]
[376291925,1753919444022,-460.0,0.00020166,2]
[376291927,1753919444032,-500.0,0.00020173,2]
[376291929,1753919444041,-161.640901,0.00020187,2]
[376291931,1753919444053,-460.0,0.00020437,2]
[376291933,1753919444063,-460.0,0.00020438,2]
[376291935,1753919444073,-152.13591053,0.00020438,2]
[376291937,1753919444082,-460.0,0.00020438,2]
[376291939,1753919444092,-460.0,0.00020438,2]
[376291941,1753919444101,-609.73124727,0.00020438,2]
[376291943,1753919444110,-537.86875273,0.00020438,2]
[376291945,1753919444119,-460.0,0.00020438,2]
[376291947,1753919444129,-460.0,0.00020438,2]
[376291949,1753919444138,-460.0,0.00020438,2]
[376291951,1753919444147,-460.0,0.00020438,2]
[376291953,1753919444157,-460.0,0.00020438,2]
[376291955,1753919444166,-460.0,0.00020438,2]
[376291957,1753919444175,-326.19,0.00020438,2]
[376291959,1753919444187,-460.0,0.00020438,2]
[376291974,1753919444319,-555.72,0.0002044,2]
[376291976,1753919444329,-460.0,0.0002044,2]
[376291978,1753919444338,-460.0,0.0002044,2]
[376291980,1753919444347,-460.0,0.0002044,2]
[376291982,1753919444357,-460.0,0.0002044,2]
[376291984,1753919444366,-460.0,0.0002044,2]
[376291986,1753919444376,-460.0,0.0002044,2]
[376291988,1753919444385,-200.0,0.0002046,15]
[376291990,1753919444395,-200.0,0.0002046,15]
[376291992,1753919444404,-200.0,0.0002046,15]
[376291994,1753919444414,-200.0,0.0002046,15]
[376291996,1753919444423,-200.0,0.0002046,15]
[376291998,1753919444432,-200.0,0.0002046,15]
[376292000,1753919444442,-200.0,0.0002046,15]
[376292002,1753919444451,-200.0,0.0002046,15]
[376292004,1753919444461,-200.0,0.0002046,15]
[376292006,1753919444470,-200.0,0.0002046,15]
[376292008,1753919444479,-380.29,0.00020603,10]
[376292010,1753919444489,-500.0,0.00020673,2]
[376292012,1753919444500,-319.8947657,0.00020673,2]
[376292014,1753919444510,-500.0,0.00020673,2]
[376292016,1753919444519,-506.51457,0.00020673,2]
[376292018,1753919444529,-500.0,0.00020673,2]
[376292020,1753919444539,-460.0,0.00020711,2]
[376292022,1753919444548,-460.0,0.00020712,2]
[376292024,1753919444558,-460.0,0.00020712,2]
[376292026,1753919444567,-460.0,0.00020712,2]
[376292028,1753919444577,-460.0,0.00020712,2]
[376292030,1753919444587,-460.0,0.00020712,2]
[376292032,1753919444597,-460.0,0.00020712,2]
[376292034,1753919444606,-460.0,0.00020712,2]
[376292036,1753919444616,-460.0,0.00020712,2]
[376292038,1753919444625,-555.72,0.00020714,2]
[376292040,1753919444635,-460.0,0.00020714,2]
[376292042,1753919444644,-460.0,0.00020714,2]
[376292044,1753919444653,-460.0,0.00020714,2]
[376292046,1753919444662,-460.0,0.00020714,2]
[376292048,1753919444672,-460.0,0.00020714,2]
[376292050,1753919444681,-179.56643065,0.00020977,2]
[376292052,1753919444691,-460.0,0.00020986,2]
[376292054,1753919444702,-460.0,0.00020986,2]
[376292056,1753919444711,-460.0,0.00020986,2]
[376292058,1753919444720,-460.0,0.00020986,2]
[376292060,1753919444729,-460.0,0.00020986,2]
[376292062,1753919444738,-460.0,0.00020986,2]
[376292064,1753919444747,-460.0,0.00020986,2]
[376292066,1753919444756,-503.43,0.00020986,2]
[376292068,1753919444765,-555.72,0.00020988,2]
[376292070,1753919444774,-441.01283186,0.00020988,2]
[376292072,1753919444783,-460.0,0.00020988,2]
[376292074,1753919444793,-165.05811801,0.00020988,2]
[376292076,1753919444802,-460.0,0.00020988,2]
[376292078,1753919444811,-460.0,0.00020988,2]
[376292080,1753919444820,-460.0,0.0002126,2]
[376292083,1753919444830,-460.0,0.0002126,2]
[376292085,1753919444850,-460.0,0.0002126,2]
[376292087,1753919444859,-460.0,0.0002126,2]
[376292090,1753919444869,-460.0,0.0002126,2]
[376292092,1753919444879,-189.02756443,0.0002126,2]
[376292094,1753919444889,-460.0,0.0002126,2]
[376292096,1753919444899,-555.72,0.00021262,2]
[376292098,1753919444909,-460.0,0.00021262,2]
[376292100,1753919444919,-460.0,0.00021262,2]
[376292102,1753919444928,-460.0,0.00021262,2]
[376292104,1753919444939,-500.0,0.00021375,2]
[376292106,1753919444949,-500.0,0.0002153,2]
[376292108,1753919444959,-500.78900339,0.0002153,2]
[376292110,1753919444974,-292.35326866,0.0002153,2]
[376292112,1753919444984,-460.0,0.00021534,2]
[376292114,1753919444993,-460.0,0.00021534,2]
[376292116,1753919445003,-460.0,0.00021534,2]
[376292118,1753919445012,-460.0,0.00021534,2]
[376292120,1753919445022,-460.0,0.00021534,2]
[376292123,1753919445032,-460.0,0.00021534,2]
[376292125,1753919445042,-555.72,0.00021536,2]
[376292127,1753919445052,-460.0,0.00021536,2]
[376292129,1753919445061,-460.0,0.00021536,2]
[376292131,1753919445070,-460.0,0.00021536,2]
[376292133,1753919445080,-496.76717727,0.00021595,2]
[376292135,1753919445089,-509.85135753,0.00021645,2]
[376292136,1753919445099,-500.0,0.00021645,2]
[376292138,1753919445108,-475.354,0.00021776,2]
[376292140,1753919445118,-460.0,0.00021808,2]
[376292142,1753919445127,-460.0,0.00021808,2]
[376292144,1753919445136,-460.0,0.00021808,2]
[376292146,1753919445145,-460.0,0.00021808,2]
[376292148,1753919445155,-460.0,0.00021808,2]
[376292150,1753919445164,-369.12265066,0.00021808,2]
[376292152,1753919445173,-555.72,0.0002181,2]
[376292153,1753919445182,-460.0,0.0002181,2]
[376292156,1753919445192,-460.0,0.0002181,2]
[376292157,1753919445204,-460.0,0.0002181,2]
[376292160,1753919445215,-167.0,0.00021836,2]
[376292161,1753919445225,-179.56643065,0.0002189,2]
[376292163,1753919445235,-203.77509201,0.00022,3]
[376292165,1753919445245,-200.0,0.00022,2]
[376292167,1753919445255,-649.57,0.00022,7]
[376292170,1753919445265,-460.0,0.00022082,2]
[376292171,1753919445275,-460.0,0.00022082,2]
[376292174,1753919445284,-460.0,0.00022082,2]
[376292176,1753919445294,-460.0,0.00022082,2]
[376292177,1753919445304,-460.0,0.00022082,2]
[376292180,1753919445314,-555.72,0.00022084,2]
[376292182,1753919445324,-460.0,0.00022084,2]
[376292184,1753919445334,-460.0,0.00022084,2]
[376292185,1753919445343,-460.0,0.00022084,2]
[376292187,1753919445353,-160.0,0.0002223,2]
[376292190,1753919445363,-214.95885286,0.00022321,2]
[376292192,1753919445373,-460.0,0.00022356,2]
[376292194,1753919445383,-192.49,0.00022356,2]
[376292196,1753919445392,-587.64,0.00022356,2]
[376292198,1753919445401,-460.0,0.00022356,2]
[376292200,1753919445411,-460.0,0.00022356,2]
[376292202,1753919445425,-555.72,0.00022358,2]
[376292204,1753919445434,-460.0,0.00022358,2]
[376292206,1753919445444,-460.0,0.00022358,2]
[376292208,1753919445454,-460.0,0.00022358,2]
[376292210,1753919445464,-459.4,0.00022453,3]
[376292212,1753919445474,-200.0,0.00022463,15]
[376292214,1753919445484,-200.0,0.00022463,15]
[376292217,1753919445494,-200.0,0.00022463,15]
[376292219,1753919445504,-200.0,0.00022463,15]
[376292221,1753919445514,-200.0,0.00022463,15]
[376292222,1753919445524,-200.0,0.00022463,15]
[376292225,1753919445534,-200.0,0.00022463,15]
[376292226,1753919445544,-200.0,0.00022463,15]
[376292229,1753919445554,-200.0,0.00022463,15]
[376292230,1753919445564,-200.0,0.00022463,15]
[376292232,1753919445574,-200.0,0.00022463,15]
[376292234,1753919445584,-200.0,0.00022463,15]
[376292236,1753919445594,-200.0,0.00022463,15]
[376292238,1753919445604,-200.0,0.00022463,15]
[376292240,1753919445614,-500.0,0.0002261,2]
[376292242,1753919445623,-501.94752699,0.0002261,2]
[376292244,1753919445633,-166.4309597,0.00022612,2]
[376292246,1753919445642,-460.0,0.0002263,2]
[376292249,1753919445652,-207.08675538,0.0002263,2]
[376292250,1753919445662,-460.0,0.0002263,2]
[376292252,1753919445672,-555.72,0.00022632,2]
[376292255,1753919445682,-460.0,0.00022632,2]
[376292257,1753919445691,-460.0,0.00022632,2]
[376292259,1753919445701,-460.0,0.00022632,2]
[376292260,1753919445711,-500.0,0.00022703,2]
[376292262,1753919445720,-260.0,0.00022778,2]
[376292265,1753919445730,-179.56643065,0.00022803,2]
[376292267,1753919445739,-177.85636644,0.00022899,2]
[376292268,1753919445748,-460.0,0.00022904,2]
[376292270,1753919445758,-555.72,0.00022906,2]
[376292272,1753919445768,-591.6,0.00022906,2]
[376292275,1753919445777,-460.0,0.00022906,2]
[376292277,1753919445787,-460.0,0.00022906,2]
[376292279,1753919445796,-151.0,0.00022946,5]
[376292281,1753919445806,-500.0,0.00022973,2]
[376292283,1753919445816,-517.79606695,0.00022973,2]
[376292285,1753919445825,-500.0,0.00022973,2]
[376292287,1753919445836,-500.0,0.00022999,2]
[376292289,1753919445845,-500.0,0.00022999,2]
[376292291,1753919445855,-500.0,0.00022999,2]
[376292293,1753919445864,-500.0,0.00022999,2]
[376292295,1753919445874,-500.0,0.00022999,2]
[376292296,1753919445883,-223.21834056,0.00022999,2]
[376292298,1753919445893,-373.17601295,0.00022999,2]
[376292300,1753919445902,-500.0,0.00022999,2]
[376292302,1753919445912,-500.0,0.00022999,2]
[376292304,1753919445922,-404.38894832,0.00022999,2]
[376292306,1753919445931,-500.0,0.00022999,2]
[376292308,1753919445941,-500.0,0.00022999,2]
[376292310,1753919445950,-500.0,0.00022999,2]
[376292313,1753919445961,-500.0,0.00022999,2]
[376292314,1753919445973,-398.7581442,0.00022999,2]
[376292316,1753919445982,-500.0,0.00022999,2]
[376292318,1753919445992,-500.0,0.00022999,2]
[376292320,1753919446001,-500.0,0.00022999,2]
[376292323,1753919446011,-500.0,0.00022999,2]
[376292325,1753919446022,-500.0,0.00022999,2]
[376292327,1753919446031,-3896.05616012,0.00023,4]
[376292329,1753919446047,-16630.09030586,0.00023,4]
[376292331,1753919446059,-13816.94646996,0.00023,4]
[376292333,1753919446071,-1076.2,0.00023,4]
[376292336,1753919446083,-500.0,0.00023,4]
[376292379,1753919446487,-1188.63002315,0.000229,2]
[376292382,1753919446500,-51.00565066,0.000229,2]
[376292384,1753919446510,-2111.53345746,0.00023,4]
[376292386,1753919446522,-333.67086873,0.00023,4]
[376292388,1753919446534,-1574.84894756,0.00023,4]
[376292391,1753919446546,-1503.14143,0.00023,4]
[376292393,1753919446556,-1437.1938843,0.00023,4]
[376292432,1753919446928,-349.75517299,0.00023,4]
[376292434,1753919446940,-41170.57017193,0.00023,4]
[376292438,1753919446963,-35892.2825217,0.00023,4]
[376292898,1753919458455,150.0,0.00021613,30]
[376292905,1753919740252,150.0,0.00021917,30]
[376292908,1753919814321,164.159282,0.00013699,2]
[376292912,1753920103392,150.0,0.0002187,30]
[376292914,1753920226844,24900.0,0.00018952,2]
[376292933,1753920349765,150.0,0.00021879,30]
[376292936,1753920435457,-277.60765454,0.00019178,2]
[376292938,1753920546546,250.0,0.00018587,2]
[376292939,1753920555077,-177.17624054,0.00019178,2]
[376292940,1753920555099,-191.085323,0.00019234,2]
[376292941,1753920555120,-300.0,0.00019252,2]
[376292942,1753920555141,-300.0,0.00019252,2]
[376292943,1753920555162,-13.03428485,0.00019252,2]
[376292961,1753920632974,-300.0,0.00019252,2]
[376292963,1753920632984,-1200.0,0.00019252,2]
[376292965,1753920632994,-6728.10790548,0.00019253,2]
[376293029,1753920640987,-366.99999997,0.00019253,2]
[376293030,1753920640999,-2904.89209455,0.00019253,2]
[376293031,1753920641009,-199.7682659,0.00019491,2]
[376293032,1753920641018,-200.0,0.00019637,15]
[376293033,1753920641028,-200.0,0.00019637,15]
[376293034,1753920641037,-200.0,0.00019637,15]
[376293035,1753920641047,-200.0,0.00019637,15]
[376293036,1753920641056,-200.0,0.00019637,15]
[376293037,1753920641066,-200.0,0.00019637,15]
[376293038,1753920641076,-200.0,0.00019637,15]
[376293039,1753920641085,-200.0,0.00019637,15]
[376293040,1753920641094,-822.60752462,0.000199,2]
[376293041,1753920641103,-150.53604174,0.00020063,2]
[376293042,1753920641114,-822.60752443,0.00020141,2]
[376293043,1753920641124,-460.0,0.00020162,2]
[376293044,1753920641134,-460.0,0.00020162,2]
[376293045,1753920641143,-656.29,0.00020162,2]
[376293046,1753920641153,-460.0,0.00020162,2]
[376293047,1753920641162,-484.59,0.00020162,2]
[376293048,1753920641171,-460.0,0.00020162,2]
[376293050,1753920641181,-460.0,0.00020162,2]
[376293051,1753920641189,-460.0,0.00020162,2]
[376293052,1753920641199,-460.0,0.00020162,2]
[376293053,1753920641208,-460.0,0.00020162,2]
[376293054,1753920641218,-460.0,0.00020162,2]
[376293055,1753920641227,-460.0,0.00020162,2]
[376293056,1753920641237,-460.0,0.00020162,2]
[376293057,1753920641246,-460.0,0.00020162,2]
[376293058,1753920641255,-460.0,0.00020162,2]
[376293059,1753920641265,-460.0,0.00020162,2]
[376293061,1753920641274,-460.0,0.00020163,2]
[376293063,1753920641283,-460.0,0.00020163,2]
[376293065,1753920641292,-460.0,0.00020163,2]
[376293067,1753920641302,-460.0,0.00020163,2]
[376293070,1753920641313,-460.0,0.00020163,2]
[376293072,1753920641322,-460.0,0.00020163,2]
[376293073,1753920641331,-460.0,0.00020163,2]
[376293075,1753920641340,-460.0,0.00020163,2]
[376293078,1753920641350,-460.0,0.00020163,2]
[376293080,1753920641359,-460.0,0.00020163,2]
[376293082,1753920641368,-460.0,0.00020163,2]
[376293084,1753920641376,-460.0,0.00020163,2]
[376293086,1753920641385,-470.12659895,0.00020163,2]
[376293088,1753920641395,-460.0,0.00020163,2]
[376293090,1753920641404,-460.0,0.00020163,2]
[376293092,1753920641413,-454.52964196,0.00020163,2]
[376293094,1753920641422,-500.0,0.00020163,2]
[376293096,1753920641431,-500.0,0.00020163,2]
[376293097,1753920641440,-460.0,0.00020163,2]
[376293099,1753920641449,-460.0,0.00020163,2]
[376293101,1753920641458,-460.0,0.00020163,2]
[376293103,1753920641467,-460.0,0.00020163,2]
[376293105,1753920641477,-449.67267393,0.00020164,2]
[376293107,1753920641486,-172.80804998,0.00020164,2]
[376293110,1753920641496,-461.55921139,0.00020164,2]
[376293112,1753920641505,-460.0,0.00020164,2]
[376293114,1753920641514,-460.0,0.00020164,2]
[376293116,1753920641523,-460.0,0.00020164,2]
[376293118,1753920641532,-460.0,0.00020164,2]
[376293120,1753920641542,-1269.68,0.00020164,2]
[376293122,1753920641552,-460.0,0.00020164,2]
[376293124,1753920641562,-460.0,0.00020164,2]
[376293126,1753920641571,-460.0,0.00020164,2]
[376293128,1753920641582,-460.0,0.00020164,2]
[376293130,1753920641591,-460.0,0.00020164,2]
[376293132,1753920641601,-460.0,0.00020164,2]
[376293134,1753920641610,-739.66,0.00020164,2]
[376293136,1753920641619,-460.0,0.00020164,2]
[376293138,1753920641627,-822.60752443,0.00020383,3]
[376293140,1753920641641,-460.0,0.00020436,2]
[376293142,1753920641650,-303.89,0.00020436,2]
[376293144,1753920641659,-1333.72,0.00020436,2]
[376293146,1753920641669,-460.0,0.00020436,2]